Cogmind - Beta 16 @@@ ROGUE MODE // 2025.12.05 @ 13:50:27 Player: Grem Result: Self-destructed Performance ------------- Evolutions (2) 1000 Regions Visited (5) 1000 Robots Destroyed (13) 65 Value Destroyed (180) 180 Prototype IDs (0) 0 Alien Tech Used (0) 0 Bonus (300) 300 TOTAL SCORE: 2545 Bonus ------- Aligned with FarCom 300 Cogmind --------- Core Integrity 550/550 Matter 214/300 Energy 129/250 System Corruption 13% Temperature Cool (0) Movement Treading (145) Location -8/Materials Parts ------- > --- POWER (2) -------- (None) > --- PROPULSION (3) --- Advanced Treads > --- UTILITY (3) ------ Medium Storage Unit Medium Battery > --- WEAPON (3) ------- Medium Laser > --- INVENTORY (10) --- Aluminum Leg Aluminum Leg Flight Unit Flight Unit Flight Unit Small Storage Unit Hardened Medium Armor Plating Improved Datajack Peak State ------------ > --- POWER ------------ (None) > --- PROPULSION ------- Advanced Treads Aluminum Leg Aluminum Leg > --- UTILITY ---------- Medium Storage Unit Medium Battery Targeting Computer > --- WEAPON ----------- Grenade Launcher Rocket Launcher Rocket Launcher > --- INVENTORY -------- Flight Unit Flight Unit Flight Unit Flight Unit Small Storage Unit Medium Laser Improved Datajack Mining Laser [Rating: 14] Favorites ----------- Power Light Ion Engine Engine Light Ion Engine Propulsion Aluminum Leg Treads Advanced Treads Leg Aluminum Leg Utility Medium Storage Unit Storage Medium Storage Unit Processor Targeting Computer Weapon Medium Laser Energy Gun Medium Laser Ballistic Gun Light Assault Rifle Launcher Rocket Launcher Special Weapon Mining Laser Special Melee Weapon Improved Datajack Build | -11 -10 -10 -10 -9 -8 ------- Run | Yrd Mat Min Exi Min Mat Slots Evolved 4 | . . . . . 4 Power 1 | . . . . . 1 Propulsion 1 | . . . . . 1 Utility 1 | . . . . . 1 Weapon 1 | . . . . . 1 Parts Attached 17 | 6 2 . . 4 5 Power 2 | 1 . . . 1 . Engine 2 | 1 . . . 1 . Core . | . . . . . . Reactor . | . . . . . . Propulsion 3 | 2 . . . . 1 Treads 1 | . . . . . 1 Leg 2 | 2 . . . . . Wheel . | . . . . . . Hover . | . . . . . . Flight . | . . . . . . Utility 4 | 1 2 . . . 1 Device . | . . . . . . Storage 3 | 1 1 . . . 1 Processor 1 | . 1 . . . . Hackware . | . . . . . . Protection . | . . . . . . Artifact . | . . . . . . Weapon 8 | 2 . . . 3 3 Energy Gun 2 | 2 . . . . . Energy Cannon . | . . . . . . Ballistic Gun 1 | . . . . 1 . Ballistic Cannon . | . . . . . . Launcher 3 | . . . . 2 1 Special Weapon 1 | . . . . . 1 Impact Weapon . | . . . . . . Slashing Weapon . | . . . . . . Piercing Weapon . | . . . . . . Special Melee Weapon 1 | . . . . . 1 Unidentified Prototypes . | . . . . . . Parts Lost 9 | . . 1 . 3 5 Power 2 | . . . . 2 . Propulsion . | . . . . . . Utility 1 | . . . . . 1 Weapon 6 | . . 1 . 1 4 Highest Loss Streak 5 | . . 1 . 3 5 To Critical Strikes . | . . . . . . Average Backups 7 | . 3 7 7 8 9 Power . | . . . . . . Propulsion 3 | . 2 4 4 4 5 Utility 1 | . . 1 1 2 1 Weapon 1 | . . 2 2 2 1 Tool/Special . | . . . . . . Unused Backups 5 | . . . . . 5 Power . | . . . . . . Propulsion 4 | . . . . . 4 Utility 1 | . . . . . 1 Weapon . | . . . . . . Tool/Special . | . . . . . . Average Slot Usage (%) 83 | . 87 98 85 97 65 Engine 10 | . 14 14 14 12 . Treads 1 | . . . . . 5 Leg 23 | . 28 28 28 28 7 Storage 14 | . 14 14 14 14 17 Processor 10 | . 2 14 14 14 8 Energy Gun 13 | . 28 26 14 7 . Ballistic Gun 1 | . . . . 12 . Launcher 6 | . . . . 7 24 Peak Build Rating 14 | 6 7 7 6 13 14 Average Rating 7 | 4 6 6 6 7 11 On Entrance 5 | . 6 7 6 6 8 Avg Prop Armor Cover (%) . | . . . . . . Naked Turns . | . . . . . . Heaviest Build 24 | 12 17 17 15 24 23 Greatest Support 22 | 20 20 20 20 20 22 Greatest Overweight (x) 1 | 1 . . . 1 1 Average Overweight (x) . | . . . . . . Largest Inventory Capacity 10 | 8 10 10 10 10 10 Average Capacity 9 | 6 9 10 10 10 10 Most Carried 10 | . 7 7 8 10 10 Average Carried 7 | . 3 7 7 8 9 Final Capacity 10 | 8 10 10 10 10 10 Final Carried 9 | . 7 7 8 9 8 Class Distribution -------------------- 77% | Mutant 22% | Skirmisher Dominant Class ---------------- Mutant | -10/Materials Mutant | -10/Mines Mutant | -10/Exiles Mutant | -9/Mines Skirmisher | -8/Materials Resources | -11 -10 -10 -10 -9 -8 ----------- Run | Yrd Mat Min Exi Min Mat Matter Collected 377 | 206 64 10 . 97 . Remotely . | . . . . . . Salvage Created 278 | . 98 . . 180 . Parts 18 | . 9 . . 9 . Haulers Intercepted . | . . . . . . Recyclers Shooed . | . . . . . . Parts Field Recycled . | . . . . . . Retrieved Matter . | . . . . . . Parts Self-Destructed . | . . . . . . Prevented . | . . . . . . Parts Restored . | . . . . . . Kills | -11 -10 -10 -10 -9 -8 ------- Run | Yrd Mat Min Exi Min Mat Combat Hostiles Destroyed 10 | . 4 . . 6 . Guns 5 | . 4 . . 1 . AOE 5 | . . . . 5 . Classes Destroyed 4 | . 2 . . 2 . Worker 1 | . . . . 1 . Recycler 2 | . . . . 2 . Swarmer 9 | . 3 . . 6 . Grunt 1 | . 1 . . . . Best Kill Streak 5 | . 3 . . 5 . Combat Bots Only 3 | . 3 . . 3 . Max Kills in Single Turn 3 | . 2 . . 3 . Gunslinging 1 | . 1 . . . . Exploded 2 | . . . . 2 . Melee . | . . . . . . Uniques/NPCs Destroyed . | . . . . . . Combat | -11 -10 -10 -10 -9 -8 -------- Run | Yrd Mat Min Exi Min Mat Hostile Shots Fired 50 | . 22 12 . 16 . Missed 17 | . 9 4 . 4 . Hits 33 | . 13 8 . 12 . Projectile 33 | . 13 8 . 12 . AOE 7 | . . . . 7 . Critical Strikes 1 | . . 1 . . . Damage Taken 945 | . 142 110 . 356 337 Core 175 | . 44 43 . 88 . Absorbed by Shields . | . . . . . . Core Remaining (%) 65 | 100 . . . 30 . Volleys Fired 33 | . 12 . . 7 14 Largest 2 | . 2 . . 2 1 Hottest 100 | . 90 . . 53 100 Shots Fired 52 | . 24 . . 14 14 Gun 36 | . 24 . . 7 5 Cannon . | . . . . . . Launcher 8 | . . . . 7 1 Special 8 | . . . . . 8 Kinetic 7 | . . . . 7 . Thermal 25 | . 12 . . . 13 Explosive 8 | . . . . 7 1 Electromagnetic 12 | . 12 . . . . Robot Hit Streak 7 | . 7 . . 3 . Robot Miss Streak 3 | . 3 . . 2 . Penetration Max . | . . . . . . Secondary Targets 2 | . 2 . . . . Max Gunslinging Chain 1 | . 1 . . . . Shots Hit Robots 22 | . 15 . . 7 . Core Hits 19 | . 7 . . 12 . Critical Kills . | . . . . . . Critical Parts Destroyed . | . . . . . . Critical Strikes 1 | . 1 . . . . Burn 1 | . 1 . . . . Melee Attacks . | . . . . . . Impact . | . . . . . . Slashing . | . . . . . . Piercing . | . . . . . . Sneak Attacks . | . . . . . . Combat Hostiles . | . . . . . . Follow-up Attacks . | . . . . . . Damage Inflicted 661 | . 190 . . 471 . Guns 224 | . 190 . . 34 . Cannons . | . . . . . . Explosions 437 | . . . . 437 . Melee . | . . . . . . Ramming . | . . . . . . Kinetic 34 | . . . . 34 . Thermal 102 | . 102 . . . . Explosive 437 | . . . . 437 . Electromagnetic 88 | . 88 . . . . Impact . | . . . . . . Slashing . | . . . . . . Piercing . | . . . . . . Highest Corruption 13 | . . . . . 13 Average Corruption 13 | . . . . . 13 Corruption Purged . | . . . . . . Corruption Blocked . | . . . . . . Effects 1 | . . . . . 1 Matter Fused 1 | . . . . . 1 Overload Shots . | . . . . . . Overflow Damage 75 | . . . . 63 12 Projectiles . | . . . . . . Explosions 75 | . . . . 63 12 Melee . | . . . . . . Knockbacks . | . . . . . . Impact . | . . . . . . Kinetic . | . . . . . . Secondary . | . . . . . . Self-Inflicted Damage 75 | . . . . 28 47 Shots 2 | . . . . 1 1 Rammed . | . . . . . . Targets Rammed . | . . . . . . Kicked . | . . . . . . Crushed . | . . . . . . Highest Temperature 186 | . 186 9 . 16 . Average Temperature 60 | . 74 9 . 6 . Received Heat Transfer 93 | . 48 45 . . . Siege Activations . | . . . . . . Martial Activations . | . . . . . . Shielding Activations . | . . . . . . Robots Disrupted . | . . . . . . Combat Hostiles . | . . . . . . Robots Corrupted . | . . . . . . Combat Hostiles . | . . . . . . Parts Fried . | . . . . . . Impact Corruptions . | . . . . . . Robots Melted . | . . . . . . Combat Hostiles . | . . . . . . Parts Melted . | . . . . . . Heat Transferred 370 | . 370 . . . . Parts Sabotaged . | . . . . . . Parts Stolen . | . . . . . . Parts Stripped . | . . . . . . Power Chain Reactions . | . . . . . . Alert | -11 -10 -10 -10 -9 -8 ------- Run | Yrd Mat Min Exi Min Mat Maximum Alert Level 1 | . . . . 1 . Low Security (%) 99 | 100 100 100 . 95 100 Level 1 . | . . . . 4 . Level 2 . | . . . . . . Level 3 . | . . . . . . Level 4 . | . . . . . . Level 5 . | . . . . . . High Security . | . . . . . . Max Security . | . . . . . . Peak Influence 203 | . 75 13 . 203 74 Initial 74 | . . 13 . . 74 Average 20 | . 35 1 . 31 15 Influence Increases 384 | . 135 . . 243 6 Destroy 0b10 Robot/C 200 | . 80 . . 120 . Destroy 0b10 Robot/NC 15 | . . . . 15 . Destroy Leader 40 | . 20 . . 20 . Successful Hack 10 | . 5 . . . 5 Disable Machine 45 | . . . . 45 . Destroy Structure 44 | . . . . 43 1 Lose Combat Pursuer 30 | . 30 . . . . Influence Decreases 384 | . 100 35 . 50 199 Entered New Map 141 | . . 22 . . 119 Time Decay 213 | . 100 13 . 20 80 Lost Part 30 | . . . . 30 . Squads Dispatched 2 | . 1 . . . 1 Investigation 1 | . 1 . . . . Extermination . | . . . . . . Reinforcement 1 | . . . . . 1 Assault . | . . . . . . Garrison . | . . . . . . Intercept . | . . . . . . Searches Triggered . | . . . . . . Construction Impeded . | . . . . . . Haulers Reinforced . | . . . . . . Active Scanning Responses . | . . . . . . Cargo Convoy Interrupts . | . . . . . . Stealth | -11 -10 -10 -10 -9 -8 --------- Run | Yrd Mat Min Exi Min Mat Distress Signals . | . . . . . . Communications Jammed . | . . . . . . Distress Signals . | . . . . . . Times Spotted 19 | . 5 2 . 12 . Peak Tracking Total 7 | . 3 2 . 7 . Tactical Retreats 2 | . 2 . . . . Traps | -11 -10 -10 -10 -9 -8 ------- Run | Yrd Mat Min Exi Min Mat Traps Triggered 1 | . 1 . . . . Indirectly . | . . . . . . Trap Hack Attempts . | . . . . . . Triggered . | . . . . . . Disarmed . | . . . . . . Reprogrammed . | . . . . . . Reused . | . . . . . . Traps Extracted . | . . . . . . Installed . | . . . . . . Triggered . | . . . . . . Machines | -11 -10 -10 -10 -9 -8 ---------- Run | Yrd Mat Min Exi Min Mat Machines Disabled 3 | . . . . 3 . Max in Single Turn 2 | . . . . 2 . Machines Repaired . | . . . . . . Machines Dismantled . | . . . . . . Machines Sabotaged . | . . . . . . Overloaded Fab Kills . | . . . . . . Hacking | -11 -10 -10 -10 -9 -8 --------- Run | Yrd Mat Min Exi Min Mat Machines Accessed 7 | . 1 . 3 . 3 Terminals 4 | . 1 . . . 3 Fabricators . | . . . . . . Repair Stations . | . . . . . . Recycling Units . | . . . . . . Scanalyzers . | . . . . . . Garrison Access . | . . . . . . Total Hacks 41 | . 5 . 26 . 10 Successful 31 | . 2 . 26 . 3 Failed 10 | . 3 . . . 7 Catastrophic 1 | . . . . . 1 Database Lockouts . | . . . . . . Manual . | . . . . . . Terminals 15 | . 5 . . . 10 Fabricators . | . . . . . . Repair Stations . | . . . . . . Recycling Units . | . . . . . . Scanalyzers . | . . . . . . Garrison Access . | . . . . . . Terminal Hacks 31 | . 2 . 26 . 3 Record 26 | . . . 26 . . Alert Level 1 | . . . . . 1 Locate Traps 1 | . . . . . 1 Hauler Manifests 1 | . 1 . . . . Zone Layout 2 | . 1 . . . 1 Fabricator Hacks . | . . . . . . Repair Station Hacks . | . . . . . . Recycling Unit Hacks . | . . . . . . Scanalyzer . | . . . . . . Garrison Access Hacks . | . . . . . . Unauthorized Hacks . | . . . . . . Terminals . | . . . . . . Fabricators . | . . . . . . Repair Stations . | . . . . . . Recycling Units . | . . . . . . Scanalyzers . | . . . . . . Garrison Access . | . . . . . . Data Cores Recovered . | . . . . . . Used . | . . . . . . Hacking Detections 3 | . 1 . . . 2 Full Trace Events 1 | . 1 . . . . Feedback Events . | . . . . . . Feedback Blocked . | . . . . . . Robot Schematics Acquired . | . . . . . . Robots Built . | . . . . . . Authchips . | . . . . . . Time . | . . . . . . Total Robot Build Rating . | . . . . . . Part Schematics Acquired . | . . . . . . Parts Built . | . . . . . . Authchips . | . . . . . . Time . | . . . . . . Total Part Build Rating . | . . . . . . Part Studies Acquired . | . . . . . . Parts Repaired . | . . . . . . Time . | . . . . . . Parts Recycled . | . . . . . . Recycled Matter . | . . . . . . Retrieved Matter . | . . . . . . Retrieved Components . | . . . . . . Parts Scanalyzed . | . . . . . . Part Schematics Acquired . | . . . . . . Parts Damaged . | . . . . . . Bothacking | -11 -10 -10 -10 -9 -8 ------------ Run | Yrd Mat Min Exi Min Mat Used RIF Installer . | . . . . . . Robots Hacked . | . . . . . . Non-combat . | . . . . . . Combat . | . . . . . . Robot Hacks Applied . | . . . . . . Relay Couplers Released . | . . . . . . Fabnet Peak Effective % . | . . . . . . Robots Rewired . | . . . . . . Allies Hacked . | . . . . . . Hacks Repelled . | . . . . . . Allies | -11 -10 -10 -10 -9 -8 -------- Run | Yrd Mat Min Exi Min Mat Total Allies 1 | . . . . 1 . Largest Group 1 | . . . . 1 . Highest-Rated Group 31 | . . . . 31 . Highest-Rated Ally 31 | . . . . 31 . Total Orders . | . . . . . . Ally Attacks 4 | . . . . 4 . Total Damage 63 | . . . . 63 . Kills . | . . . . . . Allies Corrupted . | . . . . . . Allies Melted . | . . . . . . Intel | -11 -10 -10 -10 -9 -8 ------- Run | Yrd Mat Min Exi Min Mat Active Infowar (turns) . | . . . . . . Robot Analysis Total . | . . . . . . Derelict Logs Recovered . | . . . . . . Drone Launches . | . . . . . . Drone Recoveries . | . . . . . . Exploration | -11 -10 -10 -10 -9 -8 ------------- Run | Yrd Mat Min Exi Min Mat Turns Passed 1811 | 39 262 176 708 216 410 Spaces Moved 1266 | 29 170 147 590 157 173 Core 8 | 8 . . . . . Treads 95 | . . . . . 95 Legs 1163 | 21 170 147 590 157 78 Wheels . | . . . . . . Hover . | . . . . . . Flight . | . . . . . . Fastest Speed 50 | 50 120 120 120 120 145 Average Speed 130 | 105 120 120 120 120 201 Slowest Speed 225 | 120 120 120 120 190 225 Overloaded Moves . | . . . . . . Propulsion Burnouts . | . . . . . . Robots Hopped . | . . . . . . Potential Cave-ins 9 | . . . . . 9 Cave-ins Triggered 1 | . . . . . 1 Exploration Rate (%) 33 | 4 28 32 78 41 20 Regions Visited 5 Branch Regions 3 Pre-discovered Areas . | . . . . . . Known Exits Taken . | . . . . . . Unknown Exits Taken 5 | 1 1 1 1 1 . Scrap Searched 3 | . . 1 . 2 . Spaces Dug 22 | . . . . . 22 Terrain Destroyed 83 | . . . . 61 22 Melee . | . . . . . . Projectile 8 | . . . . . 8 AOE 75 | . . . . 61 14 Terrain Rammed . | . . . . . . Walls Destroyed . | . . . . . . Machines Disabled . | . . . . . . Actions | -11 -10 -10 -10 -9 -8 --------- Run | Yrd Mat Min Exi Min Mat Total 1347 | 34 203 146 590 170 204 Wait 15 | . 13 . . . 2 Move 1261 | 28 169 146 589 156 173 Hop . | . . . . . . Pick Up 13 | . 6 . 1 3 3 Fast Attach 10 | 6 2 . . 1 1 Attach 6 | . . . . 2 4 Detach 3 | . 1 . . . 2 Swap 4 | . . . . 1 3 Drop 2 | . . . . . 2 Fire 33 | . 12 . . 7 14 Melee . | . . . . . . Ram . | . . . . . . Kick . | . . . . . . Crush . | . . . . . . Escape Stasis . | . . . . . . Rewire . | . . . . . . Trap . | . . . . . . Miscellaneous . | . . . . . . Route ------- -11/Scrapyard -10/Materials -10/Mines -10/Exiles (discovered 2 exits: [*Min x2]) -9/Mines -8/Materials History --------- Turn | Location | Event 18 | -11/Scrapyard | Discovered new exit (range 16) 40 | -11/Scrapyard | Entered Materials 248 | -10/Materials | Discovered new exit (range 16) 302 | -10/Materials | Entered Mines 303 | -10/Mines | Build established: Mutant 380 | -10/Mines | Deemed a non-threat by the Exiles lab entrance 380 | -10/Mines | Discovered new exit (range 5) 478 | -10/Mines | Entered Exiles 494 | -10/Exiles | Discovered new exit (range 15) 536 | -10/Exiles | Met 8R-AWN 556 | -10/Exiles | Met EX-HEX 594 | -10/Exiles | Met EX-BIN 736 | -10/Exiles | Aligned with FarCom system 738 | -10/Exiles | Given EX-Vault access code 981 | -10/Exiles | Met EX-DEC 1037 | -10/Exiles | Visited The Gauntlet 1173 | -10/Exiles | Discovered new exit (range 12) 1186 | -10/Exiles | Entered Mines 1197 | -9/Mines | Received a Mining Laser from a helpful Derelict 1294 | -9/Mines | Received a Rocket Launcher from a helpful Derelict 1335 | -9/Mines | Discovered new exit (range 8) 1336 | -9/Mines | Assembled infested the area 1393 | -9/Mines | Core integrity fell below 50% 1402 | -9/Mines | Entered Materials 1402 | -8/Materials | Evolved 4 slots: Power x1, Propulsion x1, Utility x1, Weapon x1 1426 | -8/Materials | Lost 3 parts (2p1w) 1677 | -8/Materials | Build established: Skirmisher 1791 | -8/Materials | Crushed by falling debris 1791 | -8/Materials | System corruption reached 10% 1812 | -8/Materials | Self-destructed Last Messages --------------- Matter Pump comes online. Connecting with Terminal... Dropped Med. Laser. Acquired Hrd. Medium Armor Plating. Dropped Flight Unit. Acquired Med. Laser. The unstable cave ceiling collapses. Crushed by falling debris. Mining Laser destroyed. System corrupted by crushing effect (+5). Targeting Computer destroyed. System corrupted by crushing effect (+2). Grenade Launcher destroyed. System corrupted by crushing effect (+3). Rocket Launcher destroyed. System corrupted by crushing effect (+3). Rocket Launcher destroyed. Destroyed Rocket Launcher. System corrupted: Matter fused (-8). The unstable cave ceiling collapses. Map ----- +----------------------------------------------------+ | ?????# ## #???? | | ????####+##### #???? | | ????# #???? | | ????# #???? | | ????# ####+ | | ????##### | | ????????# | | ????????# " " | | ????????# "" "" | | ????????# "" "" | | ????????# """ """ | | ????????# "" "" | | ????????# """ """ | | ????????# """ """ | | ????????# """ """ | | ????????+ " " | | ????????# == | | ?????? # =/ | | ##??##### " " =/ | | # ## #?# "" "" | | # ##?# "" "" | | # # #?# """ """ ! | | # #?# "" "" [ | | # ## #?# """ """ | | ### ##?#### """ """ | | ??#@ #????# """ """ | | ??####????# " " | | ?##"####### | | ?#! # | | ?# # ^ ###### | | ?# # #?# | | ?# = # ^ "#?# | | ?# # ^ T#?# | | ?# #^ ^ "#?# "" | | ?# # ^ #?# "" | | ?# # #?# "" | | ?# + """ #?# | | ?########## """ #?# | | # # """ #?#### | | # [ ! # #????? | | ? # #????? | | ???"" """ + #????? | | ???"" """ # ####"T"###????? | | ???"" """ # #??#####??????? | | ??? ####?????????????? | | ??? = #????????????????? | | ??#########????????????????? | | ???????????????????????????? | | ???????????????????????????? | | ???????????????????????????? | +----------------------------------------------------+ Best States ------------- Heat Dissipation 31 Energy Generation 18 Energy Capacity 250 Matter Stores 300 Matter Capacity 300 Sight Range 16 Terrain Scan Density 10 Evasion (%) 55 Targeting Accuracy 5 Recoil Reduction 1 Item Schematics ----------------- None Robot Schematics ------------------ None Fabricated ------------ Nothing Repaired ---------- Nothing Studied --------- None Alien Tech Used ----------------- None Achievements -------------- Sixth Sense Challenges ------------ None Game ------ Seed MolecularChromaticSlamshotty Manual? 0 Play Time 00:32:35 Cumulative 9.7 hours Start 2025.12.05 @ 11:02:03 End 2025.12.05 @ 13:50:27 Sessions 1 Manual Loads 0 Difficulty Rogue Special Mode None Game No. 14 Rogue 14 Adventurer 0 Explorer 0 Win Type - Total 0 Types 0/0/0/0/0/0/0/0/0/0 Lore% 7 Gallery% 13 Achievement% 11 Wizard Run 0 Options --------- Layout 1 ASCII 0 Keyboard 1 Movement Vi Keybinds 0 Fullscreen 1 Font 32/SmallcapsGlow Map View 50x35 Zoom Use 0% Tactical HUD 0 Map Filters NONE Filters NONE Steam 1 RUN: 40804b61-2963-4647-8be1-dba926103a19